bitfinex/quotes_ETHUSD_20241231
["timestamp","ask_amount","ask_price","bid_price","bid_amount"]
[1735662892635,1.82290482,3401.5,3400.3,0.8154]
[1735662893038,2.94037,3401.0,3400.3,0.8154]
[1735662893518,1.82290482,3401.5,3400.3,0.8154]
[1735662893877,2.94047,3400.9,3400.3,0.8154]
[1735662895537,2.94026,3401.1,3400.3,0.8154]
[1735662895922,2.94014,3401.2,3400.3,0.8154]
[1735662896116,1.82290482,3401.5,3400.4,0.375638]
[1735662896353,2.94041,3400.9,3400.3,0.8154]
[1735662896662,2.94084,3400.4,3399.9,0.8159]
[1735662896813,2.94056,3400.8,3399.9,0.8159]
[1735662897017,4.16368214,3401.2,3399.6,1.23210773]
[1735662897018,3.40108214,3401.2,3399.6,0.8159]
[1735662897328,2.94066,3400.6,3399.6,0.8159]
[1735662897532,2.94066,3400.6,3399.7,0.85937787]
[1735662897732,2.94052,3400.8,3399.8,0.8159]
[1735662897938,2.94052,3400.8,3399.9,0.8159]
[1735662898546,2.94032,3401.0,3399.9,0.8159]
[1735662898723,2.9405,3400.8,3399.9,0.8159]
[1735662898919,2.94058,3400.7,3399.9,0.8159]
[1735662900270,2.94047,3400.9,3399.9,0.8159]
[1735662900451,4.76312482,3401.1,3399.9,0.8159]
[1735662900761,1.82290482,3401.1,3400.0,2.94115]
[1735662901076,2.94043,3400.9,3400.1,0.294115]
[1735662902059,2.94026,3401.1,3400.1,0.294115]
[1735662902231,1.82290482,3401.3,3400.6,3.0]
[1735662902436,1.82290482,3401.3,3400.7,0.8159]
[1735662902858,1.82290482,3401.3,3400.5,3.0]
[1735662903161,1.82290482,3401.3,3401.2,0.8159]
[1735662903524,0.2504,3401.6,3401.2,0.8159]
[1735662904779,0.2504,3401.6,3401.5,6.75577]
[1735662905269,0.2504,3401.6,3401.5,10.93678]
[1735662905450,0.2504,3401.6,3401.5,11.653446]
[1735662905652,0.2504,3401.6,3401.5,11.366406]
[1735662906801,0.2504,3401.6,3401.5,12.38546929]
[1735662906932,0.2504,3401.6,3401.5,12.98222626]
[1735662907630,0.2504,3401.6,3401.5,11.96316297]
[1735662909475,2.93848,3403.2,3402.1,3.7963]
[1735662909631,2.93824,3403.4,3402.2,0.673573]
[1735662909833,2.93809,3403.6,3402.3,0.7963]
[1735662910171,2.93815,3403.5,3402.5,0.7963]
[1735662910545,5.77923001,3403.9,3402.5,3.7353]
[1735662910546,2.93801,3403.7,3402.5,3.7353]
[1735662910910,2.93801,3403.7,3402.6,0.37353]
[1735662911047,2.93806,3403.6,3402.6,0.37353]
[1735662911397,2.84134001,3403.0,3402.5,0.7963]
[1735662911597,2.84134001,3403.0,3402.2,0.673573]
[1735662911598,2.84134001,3402.7,3402.0,0.7963]
[1735662911811,2.93892,3402.6,3401.6,1.23210773]
[1735662912007,2.93938,3402.1,3401.6,1.23210773]
[1735662912209,2.84134001,3402.4,3401.6,1.23210773]
[1735662912516,2.93946,3402.0,3401.6,1.23210773]
[1735662912660,0.7591,3403.1,3401.7,0.7963]
[1735662912841,2.93892,3402.7,3401.7,0.7963]
[1735662913768,2.93892,3402.7,3401.7,3.7963]
[1735662914109,2.93892,3402.7,3401.7,0.7963]
[1735662914442,6.53898001,3403.1,3401.8,3.0]
[1735662914443,2.9387,3402.9,3401.8,3.0]
[1735662914578,0.7591,3403.1,3401.9,0.673594]
[1735662914579,3.6976,3403.1,3401.9,0.673594]
[1735662914782,2.9385,3403.1,3402.0,0.7963]
[1735662915138,0.7591,3403.4,3402.0,3.73574]
[1735662915435,2.93846,3403.2,3402.1,0.373574]
[1735662915978,2.93846,3403.2,3402.1,3.373574]
[1735662917687,2.93846,3403.2,3402.1,3.312924]
[1735662917918,3.69737,3403.4,3402.2,0.7963]
[1735662918122,2.93809,3403.6,3402.2,0.7963]
[1735662918339,3.39337478,3403.6,3402.2,0.7963]
[1735662918521,2.93853,3403.1,3402.3,0.7109294]
[1735662919043,3.39337478,3403.6,3402.3,0.7109294]
[1735662919398,2.93837,3403.3,3402.3,0.7109294]
[1735662920319,2.93842,3403.2,3402.3,0.7109294]
[1735662921124,2.93852,3403.1,3402.3,0.7109294]
[1735662921303,2.93835,3403.3,3402.2,0.7963]
[1735662921504,2.93815,3403.5,3402.2,0.7963]
[1735662921706,2.93827,3403.4,3402.2,0.7963]
[1735662921909,3.39337478,3403.6,3402.3,0.43184387]
[1735662922113,2.93834,3403.3,3402.3,0.43184387]
[1735662922764,0.7591,3403.8,3402.4,0.7963]
[1735662922963,2.93798,3403.7,3402.6,2.93886]
[1735662923270,2.93798,3403.7,3402.7,0.373516]
[1735662923676,2.93798,3403.7,3402.7,3.373516]
[1735662924013,2.93796,3403.8,3402.8,0.812]
[1735662924821,0.7591,3404.1,3402.8,0.812]
[1735662925021,2.93803,3403.7,3402.8,0.812]
[1735662925693,2.93803,3403.7,3402.9,0.3812]
[1735662926172,2.93809,3403.6,3402.9,0.3812]
[1735662926533,2.93866,3402.9,3402.8,0.812]
[1735662926734,0.55,3403.3,3402.1,0.812]
[1735662927044,0.8211,3402.7,3401.5,0.812]
[1735662927356,0.55,3402.6,3401.5,0.812]
[1735662927555,3.39337478,3402.0,3401.2,1.23210773]
[1735662927724,0.8211,3401.9,3401.2,1.23210773]
[1735662928115,2.93998,3401.4,3401.1,0.812]
[1735662928756,0.8211,3401.9,3401.1,0.812]
[1735662929123,2.93988,3401.5,3401.1,0.812]
[1735662929323,2.9397,3401.7,3400.7,0.7565]
[1735662929568,0.8211,3401.9,3400.7,1.25536077]
[1735662929767,2.93984,3401.6,3400.7,0.7565]
[1735662929992,2.93964,3401.8,3400.7,0.7565]
[1735662930285,3.39337478,3402.0,3400.7,0.7565]
[1735662930504,2.94022,3401.1,3400.7,0.7565]
[1735662930810,6.33317478,3401.6,3399.8,3.69784]
[1735662930811,2.94042,3400.9,3399.8,3.69784]
[1735662930984,2.94005,3401.3,3399.9,3.369784]
[1735662931167,0.55,3401.4,3399.9,0.369784]
[1735662931366,2.94056,3400.8,3399.8,0.7565]
[1735662931821,2.94056,3400.8,3399.8,3.7565]
[1735662932208,0.55,3401.4,3399.8,3.69784]
[1735662932385,2.94013,3401.2,3399.8,0.7565]
[1735662932728,2.94047,3400.9,3399.9,0.07678042]
[1735662932874,2.94047,3400.9,3400.0,0.37747104]
[1735662933288,2.94047,3400.9,3400.1,0.07672174]
[1735662935752,0.8239,3401.5,3400.2,0.7565]
[1735662935753,3.55,3401.5,3400.2,0.7565]
[1735662935889,2.94043,3400.9,3400.2,0.7565]
[1735662936087,2.94049,3400.8,3400.2,0.7565]
[1735662936388,0.8239,3401.0,3400.3,0.07462116]
[1735662936389,2.94034,3401.0,3400.3,0.07462116]
[1735662936588,6.33357478,3401.2,3400.3,0.07462116]
[1735662936829,2.94044,3400.9,3400.3,0.07462116]
[1735662937034,0.8239,3401.3,3400.3,0.07462116]
[1735662937236,2.94024,3401.1,3400.3,0.07462116]
[1735662937383,2.94043,3400.9,3400.2,0.7565]
[1735662937588,2.94043,3400.9,3400.4,0.07463222]
[1735662937903,0.8239,3401.3,3400.3,0.07466156]
[1735662938102,0.8239,3401.3,3399.5,0.60180109]
[1735662938103,0.55,3401.1,3399.5,0.60180109]
[1735662938407,2.94074,3400.5,3400.4,0.07463222]
[1735662938589,2.94086,3400.4,3399.9,0.7565]
[1735662939245,0.8239,3400.6,3399.4,0.7565]
[1735662939386,2.84208024,3399.8,3398.8,0.7565]
[1735662939587,2.84208024,3399.8,3398.9,0.19886077]
[1735662939588,5.78369024,3399.5,3398.9,0.19886077]
[1735662939787,5.78369024,3399.5,3398.8,0.7565]
[1735662940033,2.94184,3399.3,3398.3,0.7565]
[1735662940330,2.94162,3399.5,3398.3,0.7565]
[1735662940634,2.94144,3399.7,3398.5,3.0]
[1735662940784,2.94144,3399.7,3398.5,2.94244]
[1735662940988,2.94144,3399.7,3398.6,0.369894]
[1735662941434,0.7973,3400.2,3398.8,3.0]
[1735662941632,2.94104,3400.2,3399.0,2.94201]
[1735662941800,2.94085,3400.4,3398.9,0.7648]
[1735662942000,2.941,3400.2,3399.3,3.7648]
[1735662942206,2.941,3400.2,3399.4,0.37648]
[1735662942432,2.9407,3400.6,3399.4,0.37648]
[1735662942433,2.94109,3400.1,3399.4,0.37648]
[1735662942639,2.941,3400.3,3399.4,0.37648]
[1735662942817,2.94108,3400.2,3399.4,0.37648]
[1735662943020,3.95035084,3400.5,3399.4,0.37648]
[1735662943332,2.94095,3400.3,3399.3,0.7648]
[1735662943536,3.33223098,3400.8,3399.3,0.7648]
[1735662943685,2.94083,3400.4,3399.3,3.70657]
[1735662943889,2.94083,3400.4,3399.4,3.07036934]
[1735662944126,2.94083,3400.4,3399.5,0.67769393]
[1735662944331,2.94069,3400.6,3399.6,0.07132727]
[1735662944632,2.94069,3400.6,3399.6,0.83612727]
[1735662944941,2.94089,3400.4,3399.6,0.83612727]
[1735662945433,0.55,3400.8,3399.7,0.07129792]
[1735662945735,2.94078,3400.5,3399.7,0.45490771]
[1735662945930,0.55,3400.8,3399.7,0.45490771]
[1735662946138,2.94084,3400.4,3399.7,0.45490771]
[1735662946991,0.55,3400.8,3399.7,0.45490771]
[1735662946992,2.94093,3400.3,3399.7,0.45490771]
[1735662947193,2.94111,3400.1,3399.7,0.07129792]
[1735662947837,2.94081,3400.5,3399.7,0.07129792]
[1735662948039,2.94094,3400.3,3399.7,0.07129792]
[1735662948809,2.94075,3400.5,3399.7,0.07129792]
[1735662949005,1.38435862,3400.9,3399.7,0.07129792]
[1735662949225,2.94041,3400.9,3399.9,2.94125]
[1735662949422,0.7973,3401.3,3400.1,0.7648]
[1735662949660,2.9405,3400.8,3400.1,0.7648]
[1735662949826,2.9405,3400.8,3400.2,0.07123874]
[1735662950042,2.94059,3400.7,3400.2,0.07123874]
[1735662950373,4.19765084,3401.3,3400.2,0.07123874]
[1735662950861,0.58098092,3401.4,3400.3,0.0712094]
[1735662951405,2.93998,3401.4,3400.3,0.0712094]
[1735662951666,2.94015,3401.2,3400.3,0.0712094]
[1735662951873,2.94025,3401.1,3400.3,0.0712094]
[1735662952215,0.7973,3401.6,3400.3,0.0712094]
[1735662952216,0.7973,3401.6,3400.4,0.7648]
[1735662952419,2.93988,3401.5,3400.5,3.0]
[1735662952640,2.93988,3401.5,3400.6,0.67767494]
[1735662952915,2.93988,3401.5,3400.6,0.7485337]
[1735662953557,2.93973,3401.7,3400.7,0.7648]
[1735662954077,5.93951,3402.0,3400.8,0.07057119]
[1735662954677,2.93979,3401.6,3400.8,0.07057119]
[1735662954831,2.93979,3401.6,3400.9,0.15130461]
[1735662955159,2.93979,3401.6,3400.9,0.22115964]
[1735662958159,0.55,3401.9,3400.9,0.06985503]
[1735662958370,2.94017,3401.2,3400.7,0.7648]
[1735662959068,2.93982,3401.6,3400.8,0.06988436]
[1735662959735,2.93982,3401.6,3400.7,0.7648]
[1735662960235,2.93982,3401.6,3400.8,0.06988436]
[1735662960434,2.93885,3402.7,3400.7,0.7648]
[1735662960435,3.40035084,3402.5,3400.7,0.7648]
[1735662960637,2.93959,3401.9,3401.0,0.7739]
[1735662960838,2.93963,3401.8,3401.1,0.371424]
[1735662961035,2.93925,3402.3,3401.1,0.06945983]
[1735662961261,2.93949,3402.0,3401.1,0.06945983]
[1735662961421,2.93949,3402.0,3401.0,3.71414]
[1735662961621,2.93949,3402.0,3401.2,0.06943051]
[1735662961821,2.93949,3402.0,3401.1,0.06945983]
[1735662962079,2.93949,3402.0,3401.3,0.06940118]
[1735662962258,2.93955,3401.9,3401.2,0.44779049]
[1735662962574,2.93955,3401.9,3401.3,0.06940118]
[1735662962774,2.93963,3401.8,3401.3,0.06940118]
[1735662963304,2.93963,3401.8,3401.0,0.7739]
[1735662963305,2.93987,3401.5,3401.4,0.06937186]
[1735662963598,3.233613,3401.8,3401.0,0.7739]
[1735662963776,2.93984,3401.6,3401.4,0.06914307]
[1735662963976,1.39023564,3402.5,3401.0,0.7739]
[1735662964179,2.93919,3402.3,3401.2,2.94009]
[1735662964548,2.93919,3402.3,3401.1,0.7739]
[1735662964549,2.93904,3402.5,3401.5,0.7739]
[1735662964908,2.93885,3402.7,3401.6,3.38029609]
[1735662965218,2.93885,3402.7,3401.9,0.7739]
[1735662965699,2.93885,3402.7,3402.0,0.06797798]
[1735662965851,0.8046,3403.4,3402.0,3.00740798]
[1735662966047,2.93816,3403.5,3402.3,0.7739]
[1735662966256,2.83882228,3402.8,3402.3,0.7739]
[1735662966480,2.93906,3402.5,3401.7,0.7739]
[1735662966865,2.93906,3402.5,3401.8,0.06780791]
[1735662967067,2.83882228,3403.1,3401.8,0.06780791]
[1735662967068,2.93911,3402.4,3401.8,0.06780791]
[1735662967250,2.93911,3402.4,3401.7,0.7739]
[1735662967452,2.93897,3402.6,3401.9,0.06777859]
[1735662967690,2.83882228,3403.4,3401.8,0.7739]
[1735662967950,2.93875,3402.8,3402.1,0.7739]
[1735662968163,2.93841,3403.2,3402.2,0.06760323]
[1735662968698,2.93875,3402.9,3402.2,0.06760323]
[1735662969084,2.93891,3402.7,3402.2,0.06760323]
[1735662969398,2.93918,3402.3,3402.2,0.06760323]
[1735662969549,2.93918,3402.3,3401.7,0.8159]
[1735662969753,2.93952,3402.0,3400.7,0.8159]
[1735662970091,2.93906,3402.5,3401.4,0.8159]
[1735662970285,2.93886,3402.7,3401.2,2.94009]
[1735662970488,2.93886,3402.7,3401.6,0.8159]
[1735662970689,2.93886,3402.7,3401.7,2.93968]
[1735662970854,2.93886,3402.7,3401.7,3.00753067]
[1735662971256,0.7605,3403.0,3401.7,3.00753067]
[1735662971257,0.7605,3403.0,3401.7,0.06785067]
[1735662971501,2.93887,3402.7,3401.7,0.06785067]
[1735662971710,2.93887,3402.7,3401.8,0.38236007]
[1735662972056,2.93887,3402.7,3401.9,0.06783913]
[1735662972395,2.93887,3402.7,3401.6,3.75569]
[1735662972700,2.93866,3402.9,3402.0,0.06780982]
[1735662972896,2.93895,3402.6,3401.6,0.8159]
[1735662973200,2.93895,3402.6,3402.1,0.06778051]
[1735662973399,2.93895,3402.6,3401.7,0.06789775]
[1735662973560,2.93895,3402.6,3401.9,0.8159]
[1735662973900,2.93862,3403.0,3401.9,0.8159]
[1735662974100,2.93895,3402.6,3402.0,0.06780982]
[1735662974711,2.93875,3402.9,3402.0,0.06780982]
[1735662974907,0.7605,3403.4,3402.1,3.75524]
[1735662975051,3.0,3403.5,3402.3,0.8159]
[1735662975479,2.93849,3403.2,3402.4,0.0676186]
[1735662975678,2.93849,3403.2,3402.3,0.8159]
[1735662975889,2.93825,3403.4,3402.5,0.0675893]
[1735662976165,2.93825,3403.4,3402.6,0.06756]
[1735662976478,2.93825,3403.4,3402.3,0.8159]
[1735662976679,2.93809,3403.6,3402.8,0.8159]
[1735662976915,2.93791,3403.8,3402.8,0.8159]
[1735662977083,2.93783,3403.9,3402.9,3.00612211]
[1735662977411,2.93783,3403.9,3403.0,0.8159]
[1735662977612,2.93783,3403.9,3403.0,0.88282495]
[1735662977820,2.93783,3403.9,3403.1,0.3821475]
[1735662977996,2.93783,3403.9,3403.1,0.44904316]
[1735662978308,3.69794,3404.4,3403.2,0.8159]
[1735662978309,2.93744,3404.4,3403.2,0.8159]
[1735662978524,5.27224879,3404.9,3403.5,2.93814]
[1735662978730,2.93711,3404.7,3403.7,0.8159]
[1735662978899,2.93711,3404.7,3403.8,0.375396]
[1735662979220,2.93711,3404.7,3403.8,0.44208666]
[1735662979883,0.55,3404.8,3403.8,0.06669066]
[1735662980079,2.93747,3404.3,3403.8,0.06669066]
[1735662980283,2.93689,3405.0,3403.8,3.0]
[1735662980499,2.93689,3405.0,3404.0,0.8159]
[1735662980705,2.93698,3404.9,3404.1,0.38825614]
[1735662981006,2.93725,3404.6,3404.1,0.0653122]
[1735662981372,3.38901617,3405.4,3404.0,0.8159]
[1735662981373,2.93706,3404.8,3404.0,0.8159]
[1735662981701,2.93693,3405.0,3404.1,0.0653122]
[1735662982211,3.38901617,3405.4,3404.1,0.0653122]
[1735662982414,2.93704,3404.8,3404.1,0.0653122]
[1735662983211,3.38901617,3405.4,3404.1,0.0653122]
[1735662983212,0.55,3405.2,3404.1,0.0653122]
[1735662983385,3.93901617,3405.0,3404.1,0.0653122]
[1735662983581,2.93743,3404.4,3404.0,0.8159]
[1735662983787,2.93717,3404.7,3404.0,0.8159]
[1735662983986,2.93753,3404.3,3404.0,0.8159]
[1735662984229,2.93685,3405.1,3404.0,0.8159]
[1735662984371,0.293685,3405.1,3404.1,0.06506366]
[1735662984716,2.93716,3404.7,3404.1,0.06506366]
[1735662985014,2.93683,3405.1,3404.1,0.06506366]
[1735662985511,2.93661,3405.3,3404.1,0.06506366]
[1735662985714,2.93648,3405.5,3404.2,0.7749]
[1735662985929,0.373888,3405.4,3404.2,1.15266437]
[1735662986102,2.93671,3405.2,3404.3,0.06500511]
[1735662986285,2.93652,3405.4,3404.4,0.7749]
[1735662986491,2.93661,3405.3,3404.4,0.83987584]
[1735662986914,3.0,3405.7,3404.4,0.83987584]
[1735662986915,2.93672,3405.2,3404.4,0.83987584]
[1735662987230,2.93685,3405.0,3404.4,0.83987584]
[1735662987437,2.93695,3404.9,3404.4,0.83987584]
[1735662987728,0.55,3405.4,3404.4,0.83987584]
[1735662987891,2.93674,3405.2,3404.4,0.7749]
[1735662988088,2.93674,3405.2,3404.5,0.06494658]
[1735662988340,2.93616,3405.8,3404.6,0.7749]
[1735662988699,2.93649,3405.5,3404.7,0.06488804]
[1735662988891,2.93627,3405.7,3404.6,0.7749]
[1735662989225,2.93635,3405.6,3404.7,0.06352384]
[1735662989585,2.93635,3405.6,3404.8,0.7966]
[1735662989825,0.8257,3406.2,3404.9,0.06346532]
[1735662989826,0.55,3406.1,3404.9,0.06346532]
[1735662990028,2.93623,3405.8,3404.9,0.06346532]
[1735662990230,2.93623,3405.8,3404.8,0.7966]
[1735662990632,2.93623,3405.8,3404.9,0.06315306]
[1735662993925,2.93601,3406.0,3404.9,0.06315306]
[1735662994254,0.60006951,3406.4,3405.0,0.7966]
[1735662994455,2.93583,3406.2,3405.0,0.8593881]
[1735662994621,2.93583,3406.2,3405.1,0.37966231]
[1735662994823,2.93583,3406.2,3405.2,0.7966]
[1735662995064,2.93583,3406.2,3405.2,0.85932959]
[1735662995265,2.93565,3406.4,3405.3,2.93657]
[1735662995571,2.93567,3406.4,3405.5,0.7966]
[1735662995855,3.1055693,3406.6,3405.6,0.06261258]
[1735662996012,3.1055693,3406.6,3405.7,0.7966]
[1735662996013,0.1700693,3406.6,3405.7,0.7966]
[1735662996212,0.1700693,3406.6,3405.6,0.06261258]
[1735662996213,0.1700693,3406.6,3405.8,0.06255409]
[1735662996448,0.1700693,3406.6,3405.8,1.09648641]
[1735662996708,0.1700693,3406.6,3405.9,0.85912485]
[1735662997109,0.1700693,3406.6,3406.0,0.7966]
[1735662997355,0.1700693,3406.6,3406.0,0.85871303]
[1735662997555,0.1700693,3406.6,3406.0,3.79470303]
[1735662997712,0.1700693,3406.6,3406.1,1.20605894]
[1735662997911,0.1700693,3406.6,3406.2,0.7966]
[1735662998241,0.1700693,3406.6,3406.2,3.85865455]
[1735662998408,0.1700693,3406.6,3406.3,0.7966]
[1735662998611,0.1700693,3406.6,3406.4,0.06199608]
[1735662998827,0.1700693,3406.6,3406.3,0.7966]
[1735662999124,0.1700693,3406.6,3406.5,0.06196684]
[1735662999342,0.1700693,3406.6,3406.4,0.73524608]
[1735662999542,0.1700693,3406.6,3406.5,0.06196684]
[1735663000244,0.1700693,3406.6,3406.3,0.7966]
[1735663000564,0.1700693,3406.6,3406.5,0.06196684]
[1735663000766,0.1700693,3406.6,3406.5,5.8131]
[1735663000993,0.1700693,3406.6,3406.5,9.16711684]
[1735663001198,0.1700693,3406.6,3406.5,10.36689061]
[1735663001794,2.93447,3407.8,3406.7,0.8131]
[1735663002155,3.8052,3408.2,3406.8,0.06044952]
[1735663002496,2.93468,3407.6,3406.8,0.06044952]
[1735663002795,2.93485,3407.4,3406.8,0.06044952]
[1735663003092,2.93506,3407.1,3406.8,0.06044952]
[1735663003300,2.93506,3407.1,3406.7,0.8131]
[1735663003469,2.93506,3407.1,3406.9,0.06042029]
[1735663003670,2.93506,3407.1,3406.7,0.8131]
[1735663003866,2.93506,3407.1,3407.0,0.06039107]
[1735663004070,2.93506,3407.1,3406.7,0.8131]
[1735663004267,2.93506,3407.1,3407.0,0.06039107]
[1735663004467,2.93489,3407.3,3406.7,0.8131]
[1735663004677,2.93435,3407.9,3406.7,0.8131]
[1735663004678,2.93499,3407.2,3406.7,0.8131]
[1735663004876,2.93499,3407.2,3406.8,0.06044952]
[1735663005067,2.93499,3407.2,3406.7,0.8131]
[1735663005303,2.93499,3407.2,3406.9,0.06042029]
[1735663005598,2.93499,3407.2,3406.7,0.8131]
[1735663005788,2.93499,3407.2,3406.8,0.44175952]
[1735663006391,0.59338097,3408.2,3407.2,3.0]
[1735663006700,2.93419,3408.1,3407.3,0.8734034]
[1735663006888,2.93384,3408.6,3407.3,0.8734034]
[1735663006889,2.93404,3408.3,3407.4,0.67040242]
[1735663007098,2.93404,3408.3,3407.4,0.73067661]
[1735663007286,0.60162237,3408.7,3407.4,0.73067661]
[1735663007486,2.93425,3408.1,3407.4,0.73067661]
[1735663007690,5.86716,3408.8,3407.5,0.45437766]
[1735663007891,2.93447,3407.8,3407.5,0.06024497]
[1735663008074,2.93447,3407.8,3407.3,0.8131]
[1735663008272,2.93447,3407.8,3407.6,0.05932358]
[1735663008475,2.93447,3407.8,3407.3,0.8131]
[1735663008677,2.93447,3407.8,3407.7,0.05929437]
[1735663008878,2.93447,3407.8,3407.3,0.8131]
[1735663009078,2.93447,3407.8,3407.4,0.66437208]
[1735663009413,2.93428,3408.0,3407.4,0.72375409]
[1735663009575,2.93428,3408.0,3407.4,0.05938201]
[1735663009913,2.9347,3407.5,3407.4,0.05938201]
[1735663010205,2.93495,3407.3,3407.0,0.7785]
[1735663010567,2.93495,3407.3,3407.1,0.05662568]
[1735663010997,2.93495,3407.3,3407.0,0.7785]
[1735663011313,2.9345,3407.8,3407.1,0.05475296]
[1735663011604,2.9339,3408.5,3407.0,0.7785]
[1735663011771,2.93392,3408.4,3407.1,0.66091208]
[1735663011975,2.93442,3407.9,3407.1,0.7161072]
[1735663012173,0.8067,3408.6,3407.1,0.7161072]
[1735663012413,2.93487,3407.3,3407.1,0.7161072]
[1735663012563,2.93472,3407.5,3407.2,0.44946072]
[1735663012903,2.93427,3408.0,3407.3,0.05513668]
[1735663013057,2.93462,3407.6,3407.4,0.7785]
[1735663013260,2.9347,3407.5,3407.4,0.7785]
[1735663013876,2.9347,3407.5,3406.7,0.7785]
[1735663014074,2.93494,3407.3,3406.8,0.66091208]
[1735663015100,2.93452,3407.8,3406.8,0.66091208]
[1735663015265,2.93453,3407.7,3406.8,0.66091208]
[1735663015465,2.93503,3407.2,3406.7,0.7785]
[1735663015919,2.93475,3407.5,3406.8,5.0]
[1735663016126,0.7929,3408.1,3406.8,0.8019]
[1735663016327,2.93497,3407.2,3406.8,0.8019]
[1735663016816,2.93479,3407.4,3406.8,0.8019]
[1735663017024,2.93427,3408.0,3406.9,0.38019]
[1735663017375,2.93513,3407.0,3406.9,0.38019]
[1735663017578,2.93521,3406.9,3406.8,0.8019]
[1735663018137,2.93521,3406.9,3406.8,0.85582686]
[1735663018623,2.93521,3406.9,3406.8,0.05392686]
[1735663018988,2.93521,3406.9,3404.9,4.16461933]
[1735663018989,2.9359,3406.1,3405.0,0.8019]
[1735663019223,2.93627,3405.7,3405.1,0.20296193]
[1735663019427,2.93627,3405.7,3405.1,0.25558858]
[1735663019773,2.93643,3405.5,3405.1,0.25558858]
[1735663020419,2.93627,3405.7,3405.1,0.25558858]
[1735663020723,2.93627,3405.7,3405.1,0.05262665]
[1735663020922,2.93608,3405.9,3405.2,0.8019]
[1735663021223,2.93621,3405.8,3405.2,0.85279558]
[1735663021608,0.55,3406.5,3405.2,0.85279558]
[1735663021609,0.55,3406.3,3405.2,0.85279558]
[1735663021776,2.93659,3405.3,3405.2,0.05089558]
[1735663021981,2.93659,3405.3,3404.3,2.83062082]
[1735663021982,2.93659,3405.3,3404.4,0.8019]
[1735663022220,2.93692,3405.0,3404.4,0.8019]
[1735663022528,2.93692,3405.0,3404.5,0.05110041]
[1735663023037,2.93679,3405.1,3404.5,0.05110041]
[1735663023734,2.93657,3405.4,3404.5,0.05110041]
[1735663023933,3.41414457,3406.1,3404.8,3.0]
[1735663023934,2.93615,3405.9,3404.8,3.0]
[1735663024081,2.93618,3405.8,3404.9,1.97867208]
[1735663024285,2.93618,3405.8,3404.9,2.03088136]
[1735663024516,2.93579,3406.3,3405.0,3.0]
[1735663024683,2.93608,3405.9,3405.0,3.05224704]
[1735663024883,2.93579,3406.3,3405.1,1.57610833]
[1735663025202,2.93614,3405.9,3405.1,1.62832612]
[1735663025388,2.93614,3405.9,3405.1,0.85411779]
[1735663025926,2.93598,3406.1,3405.1,0.85411779]
[1735663026817,3.62352082,3406.7,3405.1,0.85411779]
[1735663027022,2.93594,3406.1,3405.1,0.85411779]
[1735663027487,2.9361,3405.9,3405.1,0.85411779]
[1735663027852,2.9366,3405.3,3405.1,0.85411779]
[1735663028004,2.93668,3405.2,3405.1,0.05221779]
[1735663028206,2.93668,3405.2,3404.3,0.8019]
[1735663028387,0.55,3405.7,3404.4,0.05112904]
[1735663028581,2.93676,3405.2,3404.5,0.20807484]
[1735663028838,2.93676,3405.2,3404.6,0.05108391]
[1735663029333,0.55,3405.7,3404.3,0.8019]
[1735663029334,2.93642,3405.5,3404.3,0.8019]
[1735663029484,2.9371,3404.8,3404.7,0.05122216]
[1735663029692,2.9371,3404.8,3404.3,0.8019]
[1735663030643,2.93731,3404.5,3404.3,0.8019]
[1735663030789,0.7696,3405.1,3404.3,0.8019]
[1735663030989,2.93685,3405.0,3404.3,0.8019]
[1735663031188,2.93737,3404.4,3403.7,0.7599]
[1735663031739,2.93737,3404.4,3403.8,0.05148561]
[1735663032258,2.93694,3404.9,3403.8,0.05148561]
[1735663032589,2.93723,3404.6,3403.8,0.05148561]
[1735663033289,2.93694,3404.9,3403.8,0.05148561]
[1735663033290,2.9373,3404.5,3403.8,0.05148561]
[1735663034847,0.29373,3404.5,3403.8,0.05148561]
[1735663035032,3.0,3405.0,3403.8,0.05148561]
[1735663035232,2.93694,3404.9,3403.7,0.7599]
[1735663035447,3.0,3405.0,3403.8,0.05148561]
[1735663035448,2.9378,3403.9,3403.8,0.05148561]
[1735663035664,2.9378,3403.9,3402.5,0.7599]
[1735663035665,4.15786077,3403.9,3402.5,0.7599]
[1735663035874,2.93795,3403.8,3402.7,1.176333]
[1735663036056,2.93841,3403.2,3402.6,3.25059901]
[1735663036259,2.9386,3403.0,3402.8,0.04854305]
[1735663036442,2.9386,3403.0,3402.6,0.19876193]
[1735663036635,2.9386,3403.0,3402.7,0.04857234]
[1735663037572,2.93875,3402.8,3402.7,0.04857234]
[1735663038063,2.93892,3402.7,3402.1,0.7599]
[1735663038433,2.93892,3402.7,3402.2,0.04871886]
[1735663038663,0.7696,3403.0,3402.2,0.04871886]
[1735663038980,2.93893,3402.6,3402.2,0.04871886]
[1735663039162,2.93866,3402.9,3402.2,0.04871886]
[1735663039362,0.7696,3403.4,3402.2,0.04871886]
[1735663039570,0.7696,3403.4,3402.1,0.7599]
[1735663039571,2.93834,3403.3,3402.4,0.7599]
[1735663039965,0.7696,3403.7,3402.5,0.05105901]
[1735663039966,2.93841,3403.2,3402.5,0.05105901]
[1735663040364,2.93841,3403.2,3402.4,0.7599]
[1735663040991,2.93841,3403.2,3402.5,0.05105901]
[1735663041502,2.93814,3403.6,3402.5,0.05105901]
[1735663041796,0.7696,3404.0,3402.6,3.0]
[1735663042100,0.7696,3404.0,3402.5,2.99005901]
[1735663042101,2.93824,3403.4,3402.7,1.40990631]
[1735663042594,2.93786,3403.9,3402.7,0.81090041]
[1735663042796,2.93838,3403.3,3402.7,0.81090041]
[1735663044098,0.7696,3404.0,3402.7,0.81090041]
[1735663044594,2.93803,3403.7,3402.7,0.7599]
[1735663044805,2.93803,3403.7,3402.8,0.05288259]
[1735663045097,2.93782,3403.9,3402.9,0.7707]
[1735663045300,2.93774,3404.0,3403.0,0.37623326]
[1735663045464,2.93774,3404.0,3403.0,0.05277701]